Workbook

Sheet Notes
A1: CorrelationPairGenerator.xlsm
A2: Coded beginning 2015-Feb-04 by Ronald McAllister (rpmac_xltt@sprynet.com)
A4: This Workbook demonstrates an EXCEL version of one of the ideas presented
A5: by Mr. Dave Cline in an article titled "Basket Trading Using A Directed Acyclic Graph"
A6: which appears in the April 2015 issue of
A7: "Technical Analysis of Stocks and Commodities" magazine.
B9: Specifically, this workbook performs the initial creation of correlation pairs for a user supplied list of stock symbols.
B10: It then refines this list by allowing the user to set an acceptable correlation threshold which is used to remove lesser examples.
B11: Task bar messages reflect progress in the data acquisition phase and again in the pair generation phase.
B13: Depending on the date range you specify for the data acquisition, some symbols may not have many or any bars in their history.
B14: The companies may simply be too new.
B16: This happened in the S&P 500 list I used as my example. I asked for correlation data from three years ago.
B17: In some cases I got as few as 30 bars. In others I got no bars.
B19: The correlation generation phase will skip any symbols in the candidate list with less than the number of bars you specified for the correlation computation.
B21: The end result is suitable for sumission to the DAG phase.
A23: To run the workbook:
B24: Load a list of symbols into column A of the CorrelationCandidates tab starting in row 8,
B25: Set the dates and the number of bars to use in the correlation computation.
B26: Make sure you have an internet connection and click the button to begin the data acquisition phase.
B27: The pair generation phase will automatically begin when the data acquisition is complete.
B28: When the raw pairs list is complete, go to the SortedFilteredCorrelations tab to complete the processing.
B29: Set the correlation threshold and optionally set a non zero max entries value.
B30: Click a button and you have a list of correlation pairs suitable for submission to the Directed Acyclic Graph (DAG) process described in the article.
A33: Data for this EXCEL example:
B34: Automatically downloaded from the YahooFinance web site as part of the processing.
A36: Development Notes:
A37: 1 | C37: This workbook contains and uses VBA macros.
A38: 2 | C38: Input Data
C39: The data in this workbook is sorted date descending (most recent date at the top). All formulas and
C40: VBA routines are built accordingly.

Sheet InputPriceData
A1: Chipotle Mexican (CMG) -NYSE (Daily)
A2: Last Trade: | B2: 2015-02-11 | C2: 666.36 | D2: 676.75 | E2: 664 | F2: 669.91 | G2: 462291 | H2: 3:43pm | I2: 4.8799
A3: Request Online Yahoo History for:
A4: Symbol | B4: CMG | D4: Valid
A5: From | B5: 2010-08-30 | D5: Data | AF5: Trailing 12 Div return (Cur Close)
A6: To | B6: 2012-01-01 | D6: Types | E6: =VLOOKUP(B7,D7:E10,2,FALSE) -> d
A7: Data Type | B7: Daily | D7: Daily | E7: d
D8: Weekly | E8: w
A9: Available Data | D9: Monthly | E9: m
A10: Bar Count: | B10: =COUNTA(B15:B70000)-1 -> 339 | AF10: =OFFSET(AC15,1,0,1,1)/OFFSET(N15,1,0,1,1) -> 0
A11: From: | B11: =IF(B10<=0,"",OFFSET(B15,B10,IF(HistReqDataType="v",1,0),1,1)) -> 2010-08-30 | W11: Trailing 12 Month Dividend Returns
A12: To: | B12: =IF(B10<=0,"",IF(HistReqDataType="v",OFFSET(B15,2,1,1,1),OFFSET(B15,1,0,1,1))) -> 2011-12-30 | W12: Raw Close price on Dividend date | X12: Div Year and Month | Y12: Looking for year ago Div Year and Month | Z12: Year ago Div Date we found | AA12: row offset to year ago div Date | AB12: Same month flag | AC12: Trailing 12 Div Total | AD12: Trailing 12 Div return
Q13: Split History | S13: =COUNT(Q16:Q20000) -> 0 | T13: Running | U13: Dividend History
B14: Raw Data Values | H14: Adjusted | I14: Price Adjust | J14: Vol Adjust | K14: Adjusted Values | P14: Last | Q14: Effective | R14: Shares | T14: Vol Adjust | V14: =COUNT(U16:U20000) -> 0
A15: RelRow | B15: Date | C15: Open | D15: High | E15: Low | F15: Close | G15: Volume | H15: Close | I15: Factor | J15: Factor | K15: Open | L15: High | M15: Low | N15: Close | O15: Volume | P15: Trade | Q15: 42047 | R15: New | S15: Old | T15: 1 | U15: Date | V15: $ / Share
A16: 1 | B16: 2011-12-30 | C16: 340.98 | D16: 341.81 | E16: 337.74 | F16: 337.74 | G16: 223200 | H16: 337.74 | I16: =H16/F16 -> 1 | J16: =INDEX(OFFSET($T$15,0,0,$S$13+1,1),MATCH(B16,OFFSET($Q$15,0,0,$S$13+1,1),-1)) -> 1 | K16: =ROUND($I16*C16,2) -> 340.98 | L16: =ROUND($I16*D16,2) -> 341.81 | M16: 337.74 | N16: 337.74 | O16: =G16*J16 -> 223200
A17: 2 | B17: 2011-12-29 | C17: 340 | D17: 342 | E17: 338.66 | F17: 340.77 | G17: 292700 | H17: 340.77 | I17: =H17/F17 -> 1 | J17: =INDEX(OFFSET($T$15,0,0,$S$13+1,1),MATCH(B17,OFFSET($Q$15,0,0,$S$13+1,1),-1)) -> 1 | K17: =ROUND($I17*C17,2) -> 340 | L17: =ROUND($I17*D17,2) -> 342 | M17: =ROUND($I17*E17,2) -> 338.66 | N17: =ROUND($I17*F17,2) -> 340.77 | O17: =G17*J17 -> 292700
A18: 3 | B18: 2011-12-28 | C18: 338.64 | D18: 340.5 | E18: 336.67 | F18: 340.14 | G18: 396600 | H18: 340.14 | I18: 1 | J18: 1 | K18: 338.64 | L18: 340.5 | M18: 336.67 | N18: 340.14 | O18: 396600
A19: 4 | B19: 2011-12-27 | C19: 335 | D19: 339.94 | E19: 333.12 | F19: 339 | G19: 272600 | H19: 339 | I19: 1 | J19: 1 | K19: 335 | L19: 339.94 | M19: 333.12 | N19: 339 | O19: 272600
A20: 5 | B20: 2011-12-23 | C20: 332.68 | D20: 335.32 | E20: 331.4 | F20: 335.32 | G20: 200600 | H20: 335.32 | I20: 1 | J20: 1 | K20: 332.68 | L20: 335.32 | M20: 331.4 | N20: 335.32 | O20: 200600
A21: 6 | B21: 2011-12-22 | C21: 334.98 | D21: 336.15 | E21: 329.8 | F21: 331.25 | G21: 245400 | H21: 331.25 | I21: 1 | J21: 1 | K21: 334.98 | L21: 336.15 | M21: 329.8 | N21: 331.25 | O21: 245400
A22: 7 | B22: 2011-12-21 | C22: 331.6 | D22: 334.6 | E22: 330.09 | F22: 334.06 | G22: 335000 | H22: 334.06 | I22: 1 | J22: 1 | K22: 331.6 | L22: 334.6 | M22: 330.09 | N22: 334.06 | O22: 335000
A23: 8 | B23: 2011-12-20 | C23: 322.2 | D23: 332 | E23: 321.47 | F23: 331.72 | G23: 513900 | H23: 331.72 | I23: 1 | J23: 1 | K23: 322.2 | L23: 332 | M23: 321.47 | N23: 331.72 | O23: 513900
A24: 9 | B24: 2011-12-19 | C24: 320.68 | D24: 321.51 | E24: 317.19 | F24: 317.77 | G24: 363300 | H24: 317.77 | I24: 1 | J24: 1 | K24: 320.68 | L24: 321.51 | M24: 317.19 | N24: 317.77 | O24: 363300
A25: 10 | B25: 2011-12-16 | C25: 319.7 | D25: 321.94 | E25: 316.8 | F25: 318.4 | G25: 554000 | H25: 318.4 | I25: 1 | J25: 1 | K25: 319.7 | L25: 321.94 | M25: 316.8 | N25: 318.4 | O25: 554000
A26: 11 | B26: 2011-12-15 | C26: 324.48 | D26: 324.5 | E26: 316.74 | F26: 318.52 | G26: 505500 | H26: 318.52 | I26: 1 | J26: 1 | K26: 324.48 | L26: 324.5 | M26: 316.74 | N26: 318.52 | O26: 505500
A27: 12 | B27: 2011-12-14 | C27: 327.7 | D27: 329.93 | E27: 319.21 | F27: 321.11 | G27: 599700 | H27: 321.11 | I27: 1 | J27: 1 | K27: 327.7 | L27: 329.93 | M27: 319.21 | N27: 321.11 | O27: 599700
A28: 13 | B28: 2011-12-13 | C28: 340 | D28: 340.11 | E28: 328.5 | F28: 329.51 | G28: 678700 | H28: 329.51 | I28: 1 | J28: 1 | K28: 340 | L28: 340.11 | M28: 328.5 | N28: 329.51 | O28: 678700
A29: 14 | B29: 2011-12-12 | C29: 335.38 | D29: 341.28 | E29: 334.35 | F29: 340.22 | G29: 529700 | H29: 340.22 | I29: 1 | J29: 1 | K29: 335.38 | L29: 341.28 | M29: 334.35 | N29: 340.22 | O29: 529700
A30: 15 | B30: 2011-12-09 | C30: 335.68 | D30: 339.98 | E30: 332.91 | F30: 338.6 | G30: 478300 | H30: 338.6 | I30: 1 | J30: 1 | K30: 335.68 | L30: 339.98 | M30: 332.91 | N30: 338.6 | O30: 478300
A31: 16 | B31: 2011-12-08 | C31: 334.91 | D31: 339.23 | E31: 333.54 | F31: 334.74 | G31: 587500 | H31: 334.74 | I31: 1 | J31: 1 | K31: 334.91 | L31: 339.23 | M31: 333.54 | N31: 334.74 | O31: 587500
A32: 17 | B32: 2011-12-07 | C32: 330.15 | D32: 338.1 | E32: 328.15 | F32: 336.75 | G32: 597400 | H32: 336.75 | I32: 1 | J32: 1 | K32: 330.15 | L32: 338.1 | M32: 328.15 | N32: 336.75 | O32: 597400
A33: 18 | B33: 2011-12-06 | C33: 334 | D33: 334.83 | E33: 329.26 | F33: 331.43 | G33: 455300 | H33: 331.43 | I33: 1 | J33: 1 | K33: 334 | L33: 334.83 | M33: 329.26 | N33: 331.43 | O33: 455300
A34: 19 | B34: 2011-12-05 | C34: 334.15 | D34: 338.68 | E34: 333.03 | F34: 336.21 | G34: 817700 | H34: 336.21 | I34: 1 | J34: 1 | K34: 334.15 | L34: 338.68 | M34: 333.03 | N34: 336.21 | O34: 817700
A35: 20 | B35: 2011-12-02 | C35: 324.98 | D35: 333.33 | E35: 323.81 | F35: 330.49 | G35: 786700 | H35: 330.49 | I35: 1 | J35: 1 | K35: 324.98 | L35: 333.33 | M35: 323.81 | N35: 330.49 | O35: 786700
A36: 21 | B36: 2011-12-01 | C36: 318.5 | D36: 324.09 | E36: 315.93 | F36: 323.04 | G36: 581600 | H36: 323.04 | I36: 1 | J36: 1 | K36: 318.5 | L36: 324.09 | M36: 315.93 | N36: 323.04 | O36: 581600
A37: 22 | B37: 2011-11-30 | C37: 320.21 | D37: 321.7 | E37: 316.27 | F37: 321.56 | G37: 709200 | H37: 321.56 | I37: 1 | J37: 1 | K37: 320.21 | L37: 321.7 | M37: 316.27 | N37: 321.56 | O37: 709200
A38: 23 | B38: 2011-11-29 | C38: 310.02 | D38: 313.82 | E38: 309.31 | F38: 312.97 | G38: 395100 | H38: 312.97 | I38: 1 | J38: 1 | K38: 310.02 | L38: 313.82 | M38: 309.31 | N38: 312.97 | O38: 395100
A39: 24 | B39: 2011-11-28 | C39: 309.5 | D39: 313.38 | E39: 307.25 | F39: 309.55 | G39: 474200 | H39: 309.55 | I39: 1 | J39: 1 | K39: 309.5 | L39: 313.38 | M39: 307.25 | N39: 309.55 | O39: 474200
A40: 25 | B40: 2011-11-25 | C40: 300 | D40: 304.89 | E40: 300 | F40: 300.75 | G40: 219900 | H40: 300.75 | I40: 1 | J40: 1 | K40: 300 | L40: 304.89 | M40: 300 | N40: 300.75 | O40: 219900
A41: 26 | B41: 2011-11-23 | C41: 306.67 | D41: 308.75 | E41: 300.45 | F41: 300.45 | G41: 459500 | H41: 300.45 | I41: 1 | J41: 1 | K41: 306.67 | L41: 308.75 | M41: 300.45 | N41: 300.45 | O41: 459500
A42: 27 | B42: 2011-11-22 | C42: 304.19 | D42: 312.22 | E42: 304.19 | F42: 308.38 | G42: 525400 | H42: 308.38 | I42: 1 | J42: 1 | K42: 304.19 | L42: 312.22 | M42: 304.19 | N42: 308.38 | O42: 525400
A43: 28 | B43: 2011-11-21 | C43: 306.43 | D43: 308.48 | E43: 302.68 | F43: 305.58 | G43: 498000 | H43: 305.58 | I43: 1 | J43: 1 | K43: 306.43 | L43: 308.48 | M43: 302.68 | N43: 305.58 | O43: 498000
A44: 29 | B44: 2011-11-18 | C44: 314.3 | D44: 315.9 | E44: 308.26 | F44: 311.06 | G44: 506100 | H44: 311.06 | I44: 1 | J44: 1 | K44: 314.3 | L44: 315.9 | M44: 308.26 | N44: 311.06 | O44: 506100
A45: 30 | B45: 2011-11-17 | C45: 316.71 | D45: 319.64 | E45: 310 | F45: 313.61 | G45: 710200 | H45: 313.61 | I45: 1 | J45: 1 | K45: 316.71 | L45: 319.64 | M45: 310 | N45: 313.61 | O45: 710200
A46: 31 | B46: 2011-11-16 | C46: 325.03 | D46: 326.95 | E46: 315.01 | F46: 316.67 | G46: 791900 | H46: 316.67 | I46: 1 | J46: 1 | K46: 325.03 | L46: 326.95 | M46: 315.01 | N46: 316.67 | O46: 791900
A47: 32 | B47: 2011-11-15 | C47: 326 | D47: 329.11 | E47: 322.51 | F47: 327.46 | G47: 496600 | H47: 327.46 | I47: 1 | J47: 1 | K47: 326 | L47: 329.11 | M47: 322.51 | N47: 327.46 | O47: 496600
A48: 33 | B48: 2011-11-14 | C48: 330.75 | D48: 334.34 | E48: 326.33 | F48: 327.03 | G48: 464600 | H48: 327.03 | I48: 1 | J48: 1 | K48: 330.75 | L48: 334.34 | M48: 326.33 | N48: 327.03 | O48: 464600
A49: 34 | B49: 2011-11-11 | C49: 329.82 | D49: 333.16 | E49: 325.28 | F49: 332.02 | G49: 507800 | H49: 332.02 | I49: 1 | J49: 1 | K49: 329.82 | L49: 333.16 | M49: 325.28 | N49: 332.02 | O49: 507800
A50: 35 | B50: 2011-11-10 | C50: 336.92 | D50: 336.95 | E50: 324.53 | F50: 325.88 | G50: 751100 | H50: 325.88 | I50: 1 | J50: 1 | K50: 336.92 | L50: 336.95 | M50: 324.53 | N50: 325.88 | O50: 751100
A51: 36 | B51: 2011-11-09 | C51: 333.01 | D51: 338.07 | E51: 331.68 | F51: 332.84 | G51: 474900 | H51: 332.84 | I51: 1 | J51: 1 | K51: 333.01 | L51: 338.07 | M51: 331.68 | N51: 332.84 | O51: 474900
A52: 37 | B52: 2011-11-08 | C52: 341 | D52: 342.74 | E52: 335 | F52: 339.87 | G52: 443800 | H52: 339.87 | I52: 1 | J52: 1 | K52: 341 | L52: 342.74 | M52: 335 | N52: 339.87 | O52: 443800
A53: 38 | B53: 2011-11-07 | C53: 338.87 | D53: 341.61 | E53: 336.09 | F53: 339.16 | G53: 419800 | H53: 339.16 | I53: 1 | J53: 1 | K53: 338.87 | L53: 341.61 | M53: 336.09 | N53: 339.16 | O53: 419800
A54: 39 | B54: 2011-11-04 | C54: 334.31 | D54: 339.94 | E54: 334.31 | F54: 338.97 | G54: 491800 | H54: 338.97 | I54: 1 | J54: 1 | K54: 334.31 | L54: 339.94 | M54: 334.31 | N54: 338.97 | O54: 491800
A55: 40 | B55: 2011-11-03 | C55: 333.63 | D55: 338.66 | E55: 329.06 | F55: 337.5 | G55: 869200 | H55: 337.5 | I55: 1 | J55: 1 | K55: 333.63 | L55: 338.66 | M55: 329.06 | N55: 337.5 | O55: 869200
A56: 41 | B56: 2011-11-02 | C56: 332.99 | D56: 332.99 | E56: 324.93 | F56: 329.62 | G56: 562300 | H56: 329.62 | I56: 1 | J56: 1 | K56: 332.99 | L56: 332.99 | M56: 324.93 | N56: 329.62 | O56: 562300
A57: 42 | B57: 2011-11-01 | C57: 326.64 | D57: 334.27 | E57: 324 | F57: 328.18 | G57: 882600 | H57: 328.18 | I57: 1 | J57: 1 | K57: 326.64 | L57: 334.27 | M57: 324 | N57: 328.18 | O57: 882600
A58: 43 | B58: 2011-10-31 | C58: 338.98 | D58: 347.94 | E58: 336.05 | F58: 336.12 | G58: 1015000 | H58: 336.12 | I58: 1 | J58: 1 | K58: 338.98 | L58: 347.94 | M58: 336.05 | N58: 336.12 | O58: 1015000
A59: 44 | B59: 2011-10-28 | C59: 341.32 | D59: 344.98 | E59: 338.33 | F59: 341.4 | G59: 496900 | H59: 341.4 | I59: 1 | J59: 1 | K59: 341.32 | L59: 344.98 | M59: 338.33 | N59: 341.4 | O59: 496900
A60: 45 | B60: 2011-10-27 | C60: 341.25 | D60: 345.92 | E60: 335.02 | F60: 343.52 | G60: 747600 | H60: 343.52 | I60: 1 | J60: 1 | K60: 341.25 | L60: 345.92 | M60: 335.02 | N60: 343.52 | O60: 747600
A61: 46 | B61: 2011-10-26 | C61: 338.96 | D61: 339.5 | E61: 330.02 | F61: 332.85 | G61: 747000 | H61: 332.85 | I61: 1 | J61: 1 | K61: 338.96 | L61: 339.5 | M61: 330.02 | N61: 332.85 | O61: 747000
A62: 47 | B62: 2011-10-25 | C62: 339.59 | D62: 343 | E62: 334.03 | F62: 334.18 | G62: 878800 | H62: 334.18 | I62: 1 | J62: 1 | K62: 339.59 | L62: 343 | M62: 334.03 | N62: 334.18 | O62: 878800
A63: 48 | B63: 2011-10-24 | C63: 334 | D63: 342.98 | E63: 332.4 | F63: 342.49 | G63: 1117300 | H63: 342.49 | I63: 1 | J63: 1 | K63: 334 | L63: 342.98 | M63: 332.4 | N63: 342.49 | O63: 1117300
A64: 49 | B64: 2011-10-21 | C64: 320.07 | D64: 333.5 | E64: 318.41 | F64: 333.49 | G64: 2661100 | H64: 333.49 | I64: 1 | J64: 1 | K64: 320.07 | L64: 333.5 | M64: 318.41 | N64: 333.49 | O64: 2661100
A65: 50 | B65: 2011-10-20 | C65: 308.97 | D65: 312.29 | E65: 306.06 | F65: 307.91 | G65: 1232800 | H65: 307.91 | I65: 1 | J65: 1 | K65: 308.97 | L65: 312.29 | M65: 306.06 | N65: 307.91 | O65: 1232800
A66: 51 | B66: 2011-10-19 | C66: 319.47 | D66: 319.99 | E66: 309.17 | F66: 310.27 | G66: 758300 | H66: 310.27 | I66: 1 | J66: 1 | K66: 319.47 | L66: 319.99 | M66: 309.17 | N66: 310.27 | O66: 758300
A67: 52 | B67: 2011-10-18 | C67: 320.5 | D67: 321.06 | E67: 310.28 | F67: 319.85 | G67: 584800 | H67: 319.85 | I67: 1 | J67: 1 | K67: 320.5 | L67: 321.06 | M67: 310.28 | N67: 319.85 | O67: 584800
A68: 53 | B68: 2011-10-17 | C68: 319.6 | D68: 324.33 | E68: 317.09 | F68: 319.79 | G68: 613900 | H68: 319.79 | I68: 1 | J68: 1 | K68: 319.6 | L68: 324.33 | M68: 317.09 | N68: 319.79 | O68: 613900
A69: 54 | B69: 2011-10-14 | C69: 320 | D69: 321.66 | E69: 314.72 | F69: 320.8 | G69: 699000 | H69: 320.8 | I69: 1 | J69: 1 | K69: 320 | L69: 321.66 | M69: 314.72 | N69: 320.8 | O69: 699000
A70: 55 | B70: 2011-10-13 | C70: 311.36 | D70: 318.98 | E70: 311.36 | F70: 317.31 | G70: 688400 | H70: 317.31 | I70: 1 | J70: 1 | K70: 311.36 | L70: 318.98 | M70: 311.36 | N70: 317.31 | O70: 688400
A71: 56 | B71: 2011-10-12 | C71: 313.47 | D71: 318.05 | E71: 311 | F71: 314 | G71: 828600 | H71: 314 | I71: 1 | J71: 1 | K71: 313.47 | L71: 318.05 | M71: 311 | N71: 314 | O71: 828600
A72: 57 | B72: 2011-10-11 | C72: 305.02 | D72: 315 | E72: 305.01 | F72: 309.95 | G72: 682700 | H72: 309.95 | I72: 1 | J72: 1 | K72: 305.02 | L72: 315 | M72: 305.01 | N72: 309.95 | O72: 682700
A73: 58 | B73: 2011-10-10 | C73: 298.77 | D73: 311.84 | E73: 298.5 | F73: 307.85 | G73: 741600 | H73: 307.85 | I73: 1 | J73: 1 | K73: 298.77 | L73: 311.84 | M73: 298.5 | N73: 307.85 | O73: 741600
A74: 59 | B74: 2011-10-07 | C74: 296.98 | D74: 298.56 | E74: 290.54 | F74: 294.59 | G74: 995000 | H74: 294.59 | I74: 1 | J74: 1 | K74: 296.98 | L74: 298.56 | M74: 290.54 | N74: 294.59 | O74: 995000
A75: 60 | B75: 2011-10-06 | C75: 292.75 | D75: 301.22 | E75: 289.08 | F75: 298.99 | G75: 1549800 | H75: 298.99 | I75: 1 | J75: 1 | K75: 292.75 | L75: 301.22 | M75: 289.08 | N75: 298.99 | O75: 1549800
A76: 61 | B76: 2011-10-05 | C76: 300.92 | D76: 302.36 | E76: 292 | F76: 300.79 | G76: 1039000 | H76: 300.79 | I76: 1 | J76: 1 | K76: 300.92 | L76: 302.36 | M76: 292 | N76: 300.79 | O76: 1039000
A77: 62 | B77: 2011-10-04 | C77: 290 | D77: 302.96 | E77: 285.39 | F77: 301.09 | G77: 1400000 | H77: 301.09 | I77: 1 | J77: 1 | K77: 290 | L77: 302.96 | M77: 285.39 | N77: 301.09 | O77: 1400000
A78: 63 | B78: 2011-10-03 | C78: 300.81 | D78: 306.6 | E78: 291.48 | F78: 292.7 | G78: 969500 | H78: 292.7 | I78: 1 | J78: 1 | K78: 300.81 | L78: 306.6 | M78: 291.48 | N78: 292.7 | O78: 969500
A79: 64 | B79: 2011-09-30 | C79: 308.09 | D79: 312.94 | E79: 301.8 | F79: 302.95 | G79: 858200 | H79: 302.95 | I79: 1 | J79: 1 | K79: 308.09 | L79: 312.94 | M79: 301.8 | N79: 302.95 | O79: 858200
A80: 65 | B80: 2011-09-29 | C80: 323.82 | D80: 324.65 | E80: 303.34 | F80: 313.14 | G80: 1190800 | H80: 313.14 | I80: 1 | J80: 1 | K80: 323.82 | L80: 324.65 | M80: 303.34 | N80: 313.14 | O80: 1190800
A81: 66 | B81: 2011-09-28 | C81: 322.47 | D81: 328.35 | E81: 318 | F81: 319.06 | G81: 782900 | H81: 319.06 | I81: =H81/F81 -> 1 | J81: =INDEX(OFFSET($T$15,0,0,$S$13+1,1),MATCH(B81,OFFSET($Q$15,0,0,$S$13+1,1),-1)) -> 1 | K81: =ROUND($I81*C81,2) -> 322.47 | L81: =ROUND($I81*D81,2) -> 328.35 | M81: =ROUND($I81*E81,2) -> 318 | N81: =ROUND($I81*F81,2) -> 319.06 | O81: =G81*J81 -> 782900
A82: 67 | B82: 2011-09-27 | C82: 334.48 | D82: 334.48 | E82: 319.53 | F82: 320.61 | G82: 941500 | H82: 320.61 | I82: 1 | J82: 1 | K82: 334.48 | L82: 334.48 | M82: 319.53 | N82: 320.61 | O82: 941500
A83: 68 | B83: 2011-09-26 | C83: 324.74 | D83: 329.97 | E83: 310 | F83: 329.44 | G83: 1047300 | H83: 329.44 | I83: 1 | J83: 1 | K83: 324.74 | L83: 329.97 | M83: 310 | N83: 329.44 | O83: 1047300
A84: 69 | B84: 2011-09-23 | C84: 322.79 | D84: 323.83 | E84: 313.58 | F84: 320.5 | G84: 1244500 | H84: 320.5 | I84: 1 | J84: 1 | K84: 322.79 | L84: 323.83 | M84: 313.58 | N84: 320.5 | O84: 1244500
A85: 70 | B85: 2011-09-22 | C85: 325.03 | D85: 334.74 | E85: 320.75 | F85: 325.94 | G85: 1762400 | H85: 325.94 | I85: 1 | J85: 1 | K85: 325.03 | L85: 334.74 | M85: 320.75 | N85: 325.94 | O85: 1762400
A86: 71 | B86: 2011-09-21 | C86: 331.03 | D86: 343.48 | E86: 329.34 | F86: 333.25 | G86: 2014000 | H86: 333.25 | I86: 1 | J86: 1 | K86: 331.03 | L86: 343.48 | M86: 329.34 | N86: 333.25 | O86: 2014000
A87: 72 | B87: 2011-09-20 | C87: 337.03 | D87: 346.78 | E87: 332 | F87: 333.19 | G87: 2035500 | H87: 333.19 | I87: 1 | J87: 1 | K87: 337.03 | L87: 346.78 | M87: 332 | N87: 333.19 | O87: 2035500
A88: 73 | B88: 2011-09-19 | C88: 315.5 | D88: 338.32 | E88: 314.2 | F88: 336.14 | G88: 1572400 | H88: 336.14 | I88: 1 | J88: 1 | K88: 315.5 | L88: 338.32 | M88: 314.2 | N88: 336.14 | O88: 1572400
A89: 74 | B89: 2011-09-16 | C89: 316.57 | D89: 318.19 | E89: 314.02 | F89: 318.06 | G89: 567100 | H89: 318.06 | I89: 1 | J89: 1 | K89: 316.57 | L89: 318.19 | M89: 314.02 | N89: 318.06 | O89: 567100
A90: 75 | B90: 2011-09-15 | C90: 318 | D90: 319 | E90: 312.25 | F90: 316.15 | G90: 667800 | H90: 316.15 | I90: 1 | J90: 1 | K90: 318 | L90: 319 | M90: 312.25 | N90: 316.15 | O90: 667800
A91: 76 | B91: 2011-09-14 | C91: 312.98 | D91: 319.66 | E91: 308.9 | F91: 315.91 | G91: 956000 | H91: 315.91 | I91: 1 | J91: 1 | K91: 312.98 | L91: 319.66 | M91: 308.9 | N91: 315.91 | O91: 956000
A92: 77 | B92: 2011-09-13 | C92: 306.31 | D92: 312.18 | E92: 306.31 | F92: 311.41 | G92: 592300 | H92: 311.41 | I92: 1 | J92: 1 | K92: 306.31 | L92: 312.18 | M92: 306.31 | N92: 311.41 | O92: 592300
A93: 78 | B93: 2011-09-12 | C93: 301.81 | D93: 309.44 | E93: 300.82 | F93: 307.75 | G93: 697200 | H93: 307.75 | I93: 1 | J93: 1 | K93: 301.81 | L93: 309.44 | M93: 300.82 | N93: 307.75 | O93: 697200
A94: 79 | B94: 2011-09-09 | C94: 308.05 | D94: 309.6 | E94: 300.53 | F94: 305.17 | G94: 923600 | H94: 305.17 | I94: 1 | J94: 1 | K94: 308.05 | L94: 309.6 | M94: 300.53 | N94: 305.17 | O94: 923600
A95: 80 | B95: 2011-09-08 | C95: 307.38 | D95: 315.85 | E95: 306.34 | F95: 311.34 | G95: 761600 | H95: 311.34 | I95: 1 | J95: 1 | K95: 307.38 | L95: 315.85 | M95: 306.34 | N95: 311.34 | O95: 761600
A96: 81 | B96: 2011-09-07 | C96: 313.9 | D96: 313.9 | E96: 307.1 | F96: 308.69 | G96: 774800 | H96: 308.69 | I96: 1 | J96: 1 | K96: 313.9 | L96: 313.9 | M96: 307.1 | N96: 308.69 | O96: 774800
A97: 82 | B97: 2011-09-06 | C97: 298.97 | D97: 310.98 | E97: 297.7 | F97: 310.43 | G97: 850800 | H97: 310.43 | I97: 1 | J97: 1 | K97: 298.97 | L97: 310.98 | M97: 297.7 | N97: 310.43 | O97: 850800
A98: 83 | B98: 2011-09-02 | C98: 302.43 | D98: 309.93 | E98: 300.57 | F98: 305.5 | G98: 625000 | H98: 305.5 | I98: 1 | J98: 1 | K98: 302.43 | L98: 309.93 | M98: 300.57 | N98: 305.5 | O98: 625000
A99: 84 | B99: 2011-09-01 | C99: 314.03 | D99: 316 | E99: 308.05 | F99: 309.17 | G99: 538800 | H99: 309.17 | I99: 1 | J99: 1 | K99: 314.03 | L99: 316 | M99: 308.05 | N99: 309.17 | O99: 538800
A100: 85 | B100: 2011-08-31 | C100: 313.66 | D100: 318 | E100: 310.23 | F100: 313.37 | G100: 892500 | H100: 313.37 | I100: 1 | J100: 1 | K100: 313.66 | L100: 318 | M100: 310.23 | N100: 313.37 | O100: 892500
A101: 86 | B101: 2011-08-30 | C101: 304.7 | D101: 313.17 | E101: 302.65 | F101: 311.21 | G101: 746700 | H101: 311.21 | I101: 1 | J101: 1 | K101: 304.7 | L101: 313.17 | M101: 302.65 | N101: 311.21 | O101: 746700
A102: 87 | B102: 2011-08-29 | C102: 300.75 | D102: 307.57 | E102: 300.75 | F102: 305.25 | G102: 731400 | H102: 305.25 | I102: 1 | J102: 1 | K102: 300.75 | L102: 307.57 | M102: 300.75 | N102: 305.25 | O102: 731400
A103: 88 | B103: 2011-08-26 | C103: 288.96 | D103: 300.79 | E103: 285 | F103: 298.88 | G103: 894300 | H103: 298.88 | I103: 1 | J103: 1 | K103: 288.96 | L103: 300.79 | M103: 285 | N103: 298.88 | O103: 894300
A104: 89 | B104: 2011-08-25 | C104: 298.36 | D104: 299.99 | E104: 288.2 | F104: 289.24 | G104: 686200 | H104: 289.24 | I104: 1 | J104: 1 | K104: 298.36 | L104: 299.99 | M104: 288.2 | N104: 289.24 | O104: 686200
A105: 90 | B105: 2011-08-24 | C105: 294.95 | D105: 299.98 | E105: 290.02 | F105: 296.46 | G105: 1166400 | H105: 296.46 | I105: 1 | J105: 1 | K105: 294.95 | L105: 299.98 | M105: 290.02 | N105: 296.46 | O105: 1166400
A106: 91 | B106: 2011-08-23 | C106: 275.49 | D106: 295.6 | E106: 275.49 | F106: 294.56 | G106: 1476200 | H106: 294.56 | I106: 1 | J106: 1 | K106: 275.49 | L106: 295.6 | M106: 275.49 | N106: 294.56 | O106: 1476200
A107: 92 | B107: 2011-08-22 | C107: 283.13 | D107: 286.6 | E107: 271.53 | F107: 273.2 | G107: 1563900 | H107: 273.2 | I107: 1 | J107: 1 | K107: 283.13 | L107: 286.6 | M107: 271.53 | N107: 273.2 | O107: 1563900
A108: 93 | B108: 2011-08-19 | C108: 281.6 | D108: 292.43 | E108: 277 | F108: 279.37 | G108: 1762100 | H108: 279.37 | I108: 1 | J108: 1 | K108: 281.6 | L108: 292.43 | M108: 277 | N108: 279.37 | O108: 1762100
A109: 94 | B109: 2011-08-18 | C109: 301.55 | D109: 301.94 | E109: 279 | F109: 284.5 | G109: 1890800 | H109: 284.5 | I109: 1 | J109: 1 | K109: 301.55 | L109: 301.94 | M109: 279 | N109: 284.5 | O109: 1890800
A110: 95 | B110: 2011-08-17 | C110: 317.05 | D110: 317.87 | E110: 305.51 | F110: 309.44 | G110: 698900 | H110: 309.44 | I110: 1 | J110: 1 | K110: 317.05 | L110: 317.87 | M110: 305.51 | N110: 309.44 | O110: 698900
A111: 96 | B111: 2011-08-16 | C111: 317.62 | D111: 318.83 | E111: 312.27 | F111: 315.89 | G111: 531800 | H111: 315.89 | I111: 1 | J111: 1 | K111: 317.62 | L111: 318.83 | M111: 312.27 | N111: 315.89 | O111: 531800
A112: 97 | B112: 2011-08-15 | C112: 319.5 | D112: 321.58 | E112: 314.02 | F112: 319.68 | G112: 521600 | H112: 319.68 | I112: 1 | J112: 1 | K112: 319.5 | L112: 321.58 | M112: 314.02 | N112: 319.68 | O112: 521600
A113: 98 | B113: 2011-08-12 | C113: 319.04 | D113: 320.97 | E113: 314.63 | F113: 317.7 | G113: 643800 | H113: 317.7 | I113: 1 | J113: 1 | K113: 319.04 | L113: 320.97 | M113: 314.63 | N113: 317.7 | O113: 643800
A114: 99 | B114: 2011-08-11 | C114: 303.36 | D114: 318.66 | E114: 303.25 | F114: 316.28 | G114: 1199300 | H114: 316.28 | I114: 1 | J114: 1 | K114: 303.36 | L114: 318.66 | M114: 303.25 | N114: 316.28 | O114: 1199300
A115: 100 | B115: 2011-08-10 | C115: 298.61 | D115: 309.2 | E115: 295 | F115: 299.76 | G115: 1401500 | H115: 299.76 | I115: 1 | J115: 1 | K115: 298.61 | L115: 309.2 | M115: 295 | N115: 299.76 | O115: 1401500
A116: 101 | B116: 2011-08-09 | C116: 294.02 | D116: 304 | E116: 287.52 | F116: 302.56 | G116: 1451300 | H116: 302.56 | I116: 1 | J116: 1 | K116: 294.02 | L116: 304 | M116: 287.52 | N116: 302.56 | O116: 1451300
A117: 102 | B117: 2011-08-08 | C117: 303.2 | D117: 305.21 | E117: 291.2 | F117: 291.7 | G117: 1410600 | H117: 291.7 | I117: 1 | J117: 1 | K117: 303.2 | L117: 305.21 | M117: 291.2 | N117: 291.7 | O117: 1410600
A118: 103 | B118: 2011-08-05 | C118: 314.34 | D118: 317.81 | E118: 301.11 | F118: 311.52 | G118: 1240800 | H118: 311.52 | I118: 1 | J118: 1 | K118: 314.34 | L118: 317.81 | M118: 301.11 | N118: 311.52 | O118: 1240800
A119: 104 | B119: 2011-08-04 | C119: 322.5 | D119: 325.88 | E119: 311.4 | F119: 311.4 | G119: 1263900 | H119: 311.4 | I119: 1 | J119: 1 | K119: 322.5 | L119: 325.88 | M119: 311.4 | N119: 311.4 | O119: 1263900
A120: 105 | B120: 2011-08-03 | C120: 321.01 | D120: 327 | E120: 313.08 | F120: 325.58 | G120: 1070500 | H120: 325.58 | I120: 1 | J120: 1 | K120: 321.01 | L120: 327 | M120: 313.08 | N120: 325.58 | O120: 1070500
A121: 106 | B121: 2011-08-02 | C121: 325.62 | D121: 330.59 | E121: 320.29 | F121: 320.65 | G121: 607300 | H121: 320.65 | I121: 1 | J121: 1 | K121: 325.62 | L121: 330.59 | M121: 320.29 | N121: 320.65 | O121: 607300
A122: 107 | B122: 2011-08-01 | C122: 328.97 | D122: 329.99 | E122: 323.09 | F122: 327.55 | G122: 511700 | H122: 327.55 | I122: 1 | J122: 1 | K122: 328.97 | L122: 329.99 | M122: 323.09 | N122: 327.55 | O122: 511700
A123: 108 | B123: 2011-07-29 | C123: 320.89 | D123: 327.57 | E123: 317.85 | F123: 324.58 | G123: 784300 | H123: 324.58 | I123: 1 | J123: 1 | K123: 320.89 | L123: 327.57 | M123: 317.85 | N123: 324.58 | O123: 784300
A124: 109 | B124: 2011-07-28 | C124: 323 | D124: 329 | E124: 323 | F124: 324.16 | G124: 525500 | H124: 324.16 | I124: 1 | J124: 1 | K124: 323 | L124: 329 | M124: 323 | N124: 324.16 | O124: 525500
A125: 110 | B125: 2011-07-27 | C125: 329.18 | D125: 329.79 | E125: 321.8 | F125: 322.74 | G125: 828100 | H125: 322.74 | I125: 1 | J125: 1 | K125: 329.18 | L125: 329.79 | M125: 321.8 | N125: 322.74 | O125: 828100
A126: 111 | B126: 2011-07-26 | C126: 333.44 | D126: 336.88 | E126: 330.75 | F126: 331.4 | G126: 466200 | H126: 331.4 | I126: 1 | J126: 1 | K126: 333.44 | L126: 336.88 | M126: 330.75 | N126: 331.4 | O126: 466200
A127: 112 | B127: 2011-07-25 | C127: 332.79 | D127: 337.32 | E127: 332 | F127: 334.46 | G127: 540800 | H127: 334.46 | I127: 1 | J127: 1 | K127: 332.79 | L127: 337.32 | M127: 332 | N127: 334.46 | O127: 540800
A128: 113 | B128: 2011-07-22 | C128: 329.66 | D128: 336.71 | E128: 328.09 | F128: 335.52 | G128: 1019800 | H128: 335.52 | I128: 1 | J128: 1 | K128: 329.66 | L128: 336.71 | M128: 328.09 | N128: 335.52 | O128: 1019800
A129: 114 | B129: 2011-07-21 | C129: 330.5 | D129: 332.43 | E129: 325.76 | F129: 328.22 | G129: 821500 | H129: 328.22 | I129: 1 | J129: 1 | K129: 330.5 | L129: 332.43 | M129: 325.76 | N129: 328.22 | O129: 821500
A130: 115 | B130: 2011-07-20 | C130: 324.75 | D130: 332 | E130: 323.67 | F130: 330.02 | G130: 1872700 | H130: 330.02 | I130: 1 | J130: 1 | K130: 324.75 | L130: 332 | M130: 323.67 | N130: 330.02 | O130: 1872700
A131: 116 | B131: 2011-07-19 | C131: 330.2 | D131: 333.71 | E131: 325.3 | F131: 333.71 | G131: 1473500 | H131: 333.71 | I131: 1 | J131: 1 | K131: 330.2 | L131: 333.71 | M131: 325.3 | N131: 333.71 | O131: 1473500
A132: 117 | B132: 2011-07-18 | C132: 324.78 | D132: 328.36 | E132: 322.62 | F132: 327.99 | G132: 764200 | H132: 327.99 | I132: 1 | J132: 1 | K132: 324.78 | L132: 328.36 | M132: 322.62 | N132: 327.99 | O132: 764200
A133: 118 | B133: 2011-07-15 | C133: 325.06 | D133: 326.18 | E133: 320.12 | F133: 324.6 | G133: 834300 | H133: 324.6 | I133: 1 | J133: 1 | K133: 325.06 | L133: 326.18 | M133: 320.12 | N133: 324.6 | O133: 834300
A134: 119 | B134: 2011-07-14 | C134: 327.44 | D134: 329.69 | E134: 320.31 | F134: 324.63 | G134: 830400 | H134: 324.63 | I134: 1 | J134: 1 | K134: 327.44 | L134: 329.69 | M134: 320.31 | N134: 324.63 | O134: 830400
A135: 120 | B135: 2011-07-13 | C135: 322.31 | D135: 328.28 | E135: 321.33 | F135: 325.18 | G135: 931800 | H135: 325.18 | I135: 1 | J135: 1 | K135: 322.31 | L135: 328.28 | M135: 321.33 | N135: 325.18 | O135: 931800
A136: 121 | B136: 2011-07-12 | C136: 320.46 | D136: 323.5 | E136: 318.54 | F136: 319.71 | G136: 644200 | H136: 319.71 | I136: 1 | J136: 1 | K136: 320.46 | L136: 323.5 | M136: 318.54 | N136: 319.71 | O136: 644200
A137: 122 | B137: 2011-07-11 | C137: 321.7 | D137: 326.46 | E137: 318.38 | F137: 320.69 | G137: 789000 | H137: 320.69 | I137: 1 | J137: 1 | K137: 321.7 | L137: 326.46 | M137: 318.38 | N137: 320.69 | O137: 789000
A138: 123 | B138: 2011-07-08 | C138: 324.75 | D138: 328.17 | E138: 321.7 | F138: 325.3 | G138: 1025100 | H138: 325.3 | I138: 1 | J138: 1 | K138: 324.75 | L138: 328.17 | M138: 321.7 | N138: 325.3 | O138: 1025100
A139: 124 | B139: 2011-07-07 | C139: 326.66 | D139: 329.8 | E139: 323.94 | F139: 328.49 | G139: 913100 | H139: 328.49 | I139: 1 | J139: 1 | K139: 326.66 | L139: 329.8 | M139: 323.94 | N139: 328.49 | O139: 913100
A140: 125 | B140: 2011-07-06 | C140: 320.88 | D140: 325.76 | E140: 319.56 | F140: 324.94 | G140: 865800 | H140: 324.94 | I140: 1 | J140: 1 | K140: 320.88 | L140: 325.76 | M140: 319.56 | N140: 324.94 | O140: 865800
A141: 126 | B141: 2011-07-05 | C141: 315.98 | D141: 322.63 | E141: 314.29 | F141: 321.45 | G141: 881900 | H141: 321.45 | I141: 1 | J141: 1 | K141: 315.98 | L141: 322.63 | M141: 314.29 | N141: 321.45 | O141: 881900
A142: 127 | B142: 2011-07-01 | C142: 307.24 | D142: 316.85 | E142: 305.88 | F142: 315.72 | G142: 827000 | H142: 315.72 | I142: 1 | J142: 1 | K142: 307.24 | L142: 316.85 | M142: 305.88 | N142: 315.72 | O142: 827000
A143: 128 | B143: 2011-06-30 | C143: 305.24 | D143: 308.55 | E143: 304.25 | F143: 308.19 | G143: 606200 | H143: 308.19 | I143: 1 | J143: 1 | K143: 305.24 | L143: 308.55 | M143: 304.25 | N143: 308.19 | O143: 606200
A144: 129 | B144: 2011-06-29 | C144: 306.5 | D144: 308.93 | E144: 303.19 | F144: 304.46 | G144: 661400 | H144: 304.46 | I144: 1 | J144: 1 | K144: 306.5 | L144: 308.93 | M144: 303.19 | N144: 304.46 | O144: 661400
A145: 130 | B145: 2011-06-28 | C145: 302.5 | D145: 305.3 | E145: 300.33 | F145: 304.72 | G145: 825800 | H145: 304.72 | I145: =H145/F145 -> 1 | J145: =INDEX(OFFSET($T$15,0,0,$S$13+1,1),MATCH(B145,OFFSET($Q$15,0,0,$S$13+1,1),-1)) -> 1 | K145: =ROUND($I145*C145,2) -> 302.5 | L145: =ROUND($I145*D145,2) -> 305.3 | M145: =ROUND($I145*E145,2) -> 300.33 | N145: =ROUND($I145*F145,2) -> 304.72 | O145: =G145*J145 -> 825800
A146: 131 | B146: 2011-06-27 | C146: 293.26 | D146: 302.72 | E146: 291.08 | F146: 301.46 | G146: 1177300 | H146: 301.46 | I146: 1 | J146: 1 | K146: 293.26 | L146: 302.72 | M146: 291.08 | N146: 301.46 | O146: 1177300
A147: 132 | B147: 2011-06-24 | C147: 292.38 | D147: 297 | E147: 290.51 | F147: 293.25 | G147: 1088100 | H147: 293.25 | I147: 1 | J147: 1 | K147: 292.38 | L147: 297 | M147: 290.51 | N147: 293.25 | O147: 1088100
A148: 133 | B148: 2011-06-23 | C148: 281.65 | D148: 291.55 | E148: 280.8 | F148: 290.78 | G148: 1016400 | H148: 290.78 | I148: 1 | J148: 1 | K148: 281.65 | L148: 291.55 | M148: 280.8 | N148: 290.78 | O148: 1016400
A149: 134 | B149: 2011-06-22 | C149: 285.12 | D149: 289.82 | E149: 284.42 | F149: 284.46 | G149: 546000 | H149: 284.46 | I149: 1 | J149: 1 | K149: 285.12 | L149: 289.82 | M149: 284.42 | N149: 284.46 | O149: 546000
A150: 135 | B150: 2011-06-21 | C150: 277.16 | D150: 285.9 | E150: 277.04 | F150: 285.25 | G150: 838700 | H150: 285.25 | I150: 1 | J150: 1 | K150: 277.16 | L150: 285.9 | M150: 277.04 | N150: 285.25 | O150: 838700
A151: 136 | B151: 2011-06-20 | C151: 268 | D151: 277.25 | E151: 267.43 | F151: 276.05 | G151: 629200 | H151: 276.05 | I151: 1 | J151: 1 | K151: 268 | L151: 277.25 | M151: 267.43 | N151: 276.05 | O151: 629200
A152: 137 | B152: 2011-06-17 | C152: 274 | D152: 275.44 | E152: 268.87 | F152: 268.97 | G152: 940300 | H152: 268.97 | I152: 1 | J152: 1 | K152: 274 | L152: 275.44 | M152: 268.87 | N152: 268.97 | O152: 940300
A153: 138 | B153: 2011-06-16 | C153: 277.3 | D153: 277.3 | E153: 269.42 | F153: 271.81 | G153: 789100 | H153: 271.81 | I153: 1 | J153: 1 | K153: 277.3 | L153: 277.3 | M153: 269.42 | N153: 271.81 | O153: 789100
A154: 139 | B154: 2011-06-15 | C154: 274.75 | D154: 278.78 | E154: 273.07 | F154: 277.3 | G154: 669100 | H154: 277.3 | I154: 1 | J154: 1 | K154: 274.75 | L154: 278.78 | M154: 273.07 | N154: 277.3 | O154: 669100
A155: 140 | B155: 2011-06-14 | C155: 273.81 | D155: 277.94 | E155: 272.45 | F155: 276.77 | G155: 530800 | H155: 276.77 | I155: 1 | J155: 1 | K155: 273.81 | L155: 277.94 | M155: 272.45 | N155: 276.77 | O155: 530800
A156: 141 | B156: 2011-06-13 | C156: 271.99 | D156: 275.64 | E156: 268.09 | F156: 270.9 | G156: 627100 | H156: 270.9 | I156: 1 | J156: 1 | K156: 271.99 | L156: 275.64 | M156: 268.09 | N156: 270.9 | O156: 627100
A157: 142 | B157: 2011-06-10 | C157: 277.31 | D157: 279.02 | E157: 271.3 | F157: 271.87 | G157: 766800 | H157: 271.87 | I157: 1 | J157: 1 | K157: 277.31 | L157: 279.02 | M157: 271.3 | N157: 271.87 | O157: 766800
A158: 143 | B158: 2011-06-09 | C158: 276.9 | D158: 279.06 | E158: 273.62 | F158: 277.87 | G158: 446500 | H158: 277.87 | I158: 1 | J158: 1 | K158: 276.9 | L158: 279.06 | M158: 273.62 | N158: 277.87 | O158: 446500
A159: 144 | B159: 2011-06-08 | C159: 279.82 | D159: 283.92 | E159: 276.12 | F159: 277.11 | G159: 655300 | H159: 277.11 | I159: 1 | J159: 1 | K159: 279.82 | L159: 283.92 | M159: 276.12 | N159: 277.11 | O159: 655300
A160: 145 | B160: 2011-06-07 | C160: 281.99 | D160: 284.87 | E160: 280.24 | F160: 281.3 | G160: 406000 | H160: 281.3 | I160: 1 | J160: 1 | K160: 281.99 | L160: 284.87 | M160: 280.24 | N160: 281.3 | O160: 406000
A161: 146 | B161: 2011-06-06 | C161: 285.01 | D161: 290.19 | E161: 280.26 | F161: 280.74 | G161: 673900 | H161: 280.74 | I161: 1 | J161: 1 | K161: 285.01 | L161: 290.19 | M161: 280.26 | N161: 280.74 | O161: 673900
A162: 147 | B162: 2011-06-03 | C162: 281.95 | D162: 291.89 | E162: 281.02 | F162: 286.51 | G162: 1024800 | H162: 286.51 | I162: 1 | J162: 1 | K162: 281.95 | L162: 291.89 | M162: 281.02 | N162: 286.51 | O162: 1024800
A163: 148 | B163: 2011-06-02 | C163: 287.13 | D163: 288.69 | E163: 282.08 | F163: 285.79 | G163: 826100 | H163: 285.79 | I163: 1 | J163: 1 | K163: 287.13 | L163: 288.69 | M163: 282.08 | N163: 285.79 | O163: 826100
A164: 149 | B164: 2011-06-01 | C164: 288.5 | D164: 291.4 | E164: 285 | F164: 285.56 | G164: 591600 | H164: 285.56 | I164: 1 | J164: 1 | K164: 288.5 | L164: 291.4 | M164: 285 | N164: 285.56 | O164: 591600
A165: 150 | B165: 2011-05-31 | C165: 294.53 | D165: 295.99 | E165: 287.23 | F165: 289.07 | G165: 775300 | H165: 289.07 | I165: 1 | J165: 1 | K165: 294.53 | L165: 295.99 | M165: 287.23 | N165: 289.07 | O165: 775300
A166: 151 | B166: 2011-05-27 | C166: 291.02 | D166: 293.99 | E166: 288.25 | F166: 292.94 | G166: 765100 | H166: 292.94 | I166: 1 | J166: 1 | K166: 291.02 | L166: 293.99 | M166: 288.25 | N166: 292.94 | O166: 765100
A167: 152 | B167: 2011-05-26 | C167: 284.8 | D167: 291.21 | E167: 282.22 | F167: 290.88 | G167: 1034800 | H167: 290.88 | I167: 1 | J167: 1 | K167: 284.8 | L167: 291.21 | M167: 282.22 | N167: 290.88 | O167: 1034800
A168: 153 | B168: 2011-05-25 | C168: 280.3 | D168: 285.98 | E168: 278.99 | F168: 284.11 | G168: 574900 | H168: 284.11 | I168: 1 | J168: 1 | K168: 280.3 | L168: 285.98 | M168: 278.99 | N168: 284.11 | O168: 574900
A169: 154 | B169: 2011-05-24 | C169: 284.24 | D169: 284.43 | E169: 279.32 | F169: 280.57 | G169: 545500 | H169: 280.57 | I169: 1 | J169: 1 | K169: 284.24 | L169: 284.43 | M169: 279.32 | N169: 280.57 | O169: 545500
A170: 155 | B170: 2011-05-23 | C170: 277.52 | D170: 285.25 | E170: 275.51 | F170: 283.33 | G170: 916400 | H170: 283.33 | I170: 1 | J170: 1 | K170: 277.52 | L170: 285.25 | M170: 275.51 | N170: 283.33 | O170: 916400
A171: 156 | B171: 2011-05-20 | C171: 279.99 | D171: 281.17 | E171: 276.04 | F171: 279.89 | G171: 677500 | H171: 279.89 | I171: 1 | J171: 1 | K171: 279.99 | L171: 281.17 | M171: 276.04 | N171: 279.89 | O171: 677500
A172: 157 | B172: 2011-05-19 | C172: 280.8 | D172: 282.61 | E172: 277.54 | F172: 281.12 | G172: 538700 | H172: 281.12 | I172: 1 | J172: 1 | K172: 280.8 | L172: 282.61 | M172: 277.54 | N172: 281.12 | O172: 538700
A173: 158 | B173: 2011-05-18 | C173: 275.17 | D173: 280.03 | E173: 274.38 | F173: 278.75 | G173: 513800 | H173: 278.75 | I173: 1 | J173: 1 | K173: 275.17 | L173: 280.03 | M173: 274.38 | N173: 278.75 | O173: 513800
A174: 159 | B174: 2011-05-17 | C174: 271 | D174: 275.11 | E174: 268.25 | F174: 274.51 | G174: 790800 | H174: 274.51 | I174: 1 | J174: 1 | K174: 271 | L174: 275.11 | M174: 268.25 | N174: 274.51 | O174: 790800
A175: 160 | B175: 2011-05-16 | C175: 278.7 | D175: 279.88 | E175: 272.12 | F175: 272.69 | G175: 806900 | H175: 272.69 | I175: 1 | J175: 1 | K175: 278.7 | L175: 279.88 | M175: 272.12 | N175: 272.69 | O175: 806900
A176: 161 | B176: 2011-05-13 | C176: 276.16 | D176: 281.98 | E176: 275.9 | F176: 280.4 | G176: 1024800 | H176: 280.4 | I176: 1 | J176: 1 | K176: 276.16 | L176: 281.98 | M176: 275.9 | N176: 280.4 | O176: 1024800
A177: 162 | B177: 2011-05-12 | C177: 272.07 | D177: 278.91 | E177: 271.33 | F177: 275.88 | G177: 922000 | H177: 275.88 | I177: 1 | J177: 1 | K177: 272.07 | L177: 278.91 | M177: 271.33 | N177: 275.88 | O177: 922000
A178: 163 | B178: 2011-05-11 | C178: 270 | D178: 275.9 | E178: 269 | F178: 274.3 | G178: 1163300 | H178: 274.3 | I178: 1 | J178: 1 | K178: 270 | L178: 275.9 | M178: 269 | N178: 274.3 | O178: 1163300
A179: 164 | B179: 2011-05-10 | C179: 266.35 | D179: 269.98 | E179: 266.28 | F179: 269.85 | G179: 504500 | H179: 269.85 | I179: 1 | J179: 1 | K179: 266.35 | L179: 269.98 | M179: 266.28 | N179: 269.85 | O179: 504500
A180: 165 | B180: 2011-05-09 | C180: 268.1 | D180: 268.82 | E180: 264.04 | F180: 266.41 | G180: 651000 | H180: 266.41 | I180: 1 | J180: 1 | K180: 268.1 | L180: 268.82 | M180: 264.04 | N180: 266.41 | O180: 651000
A181: 166 | B181: 2011-05-06 | C181: 270.11 | D181: 272.46 | E181: 266.51 | F181: 268.1 | G181: 850800 | H181: 268.1 | I181: 1 | J181: 1 | K181: 270.11 | L181: 272.46 | M181: 266.51 | N181: 268.1 | O181: 850800
A182: 167 | B182: 2011-05-05 | C182: 258.4 | D182: 269.08 | E182: 257.39 | F182: 265.77 | G182: 1076400 | H182: 265.77 | I182: 1 | J182: 1 | K182: 258.4 | L182: 269.08 | M182: 257.39 | N182: 265.77 | O182: 1076400
A183: 168 | B183: 2011-05-04 | C183: 257.1 | D183: 261.4 | E183: 249.58 | F183: 260.53 | G183: 1393000 | H183: 260.53 | I183: 1 | J183: 1 | K183: 257.1 | L183: 261.4 | M183: 249.58 | N183: 260.53 | O183: 1393000
A184: 169 | B184: 2011-05-03 | C184: 266.14 | D184: 267.76 | E184: 257.79 | F184: 260.41 | G184: 914100 | H184: 260.41 | I184: 1 | J184: 1 | K184: 266.14 | L184: 267.76 | M184: 257.79 | N184: 260.41 | O184: 914100
A185: 170 | B185: 2011-05-02 | C185: 268.8 | D185: 270 | E185: 264.05 | F185: 267.08 | G185: 761800 | H185: 267.08 | I185: 1 | J185: 1 | K185: 268.8 | L185: 270 | M185: 264.05 | N185: 267.08 | O185: 761800
A186: 171 | B186: 2011-04-29 | C186: 265.66 | D186: 268 | E186: 264.29 | F186: 266.79 | G186: 664000 | H186: 266.79 | I186: 1 | J186: 1 | K186: 265.66 | L186: 268 | M186: 264.29 | N186: 266.79 | O186: 664000
A187: 172 | B187: 2011-04-28 | C187: 261.9 | D187: 267.87 | E187: 260.12 | F187: 265.64 | G187: 1111000 | H187: 265.64 | I187: 1 | J187: 1 | K187: 261.9 | L187: 267.87 | M187: 260.12 | N187: 265.64 | O187: 1111000
A188: 173 | B188: 2011-04-27 | C188: 265.6 | D188: 268.9 | E188: 263 | F188: 263 | G188: 8272000 | H188: 263 | I188: 1 | J188: 1 | K188: 265.6 | L188: 268.9 | M188: 263 | N188: 263 | O188: 8272000
A189: 174 | B189: 2011-04-26 | C189: 273 | D189: 273.88 | E189: 264.01 | F189: 264.94 | G189: 1200000 | H189: 264.94 | I189: 1 | J189: 1 | K189: 273 | L189: 273.88 | M189: 264.01 | N189: 264.94 | O189: 1200000
A190: 175 | B190: 2011-04-25 | C190: 275.54 | D190: 276.91 | E190: 271.39 | F190: 272.65 | G190: 934700 | H190: 272.65 | I190: 1 | J190: 1 | K190: 275.54 | L190: 276.91 | M190: 271.39 | N190: 272.65 | O190: 934700
A191: 176 | B191: 2011-04-21 | C191: 282.48 | D191: 283 | E191: 270.81 | F191: 277.3 | G191: 3514000 | H191: 277.3 | I191: 1 | J191: 1 | K191: 282.48 | L191: 283 | M191: 270.81 | N191: 277.3 | O191: 3514000
A192: 177 | B192: 2011-04-20 | C192: 283.49 | D192: 289.35 | E192: 280.45 | F192: 288.1 | G192: 2219000 | H192: 288.1 | I192: 1 | J192: 1 | K192: 283.49 | L192: 289.35 | M192: 280.45 | N192: 288.1 | O192: 2219000
A193: 178 | B193: 2011-04-19 | C193: 283.31 | D193: 285.95 | E193: 279.27 | F193: 279.85 | G193: 861800 | H193: 279.85 | I193: 1 | J193: 1 | K193: 283.31 | L193: 285.95 | M193: 279.27 | N193: 279.85 | O193: 861800
A194: 179 | B194: 2011-04-18 | C194: 282.06 | D194: 285.08 | E194: 279 | F194: 283.37 | G194: 787100 | H194: 283.37 | I194: 1 | J194: 1 | K194: 282.06 | L194: 285.08 | M194: 279 | N194: 283.37 | O194: 787100
A195: 180 | B195: 2011-04-15 | C195: 283.99 | D195: 285.45 | E195: 280.5 | F195: 285.13 | G195: 910700 | H195: 285.13 | I195: 1 | J195: 1 | K195: 283.99 | L195: 285.45 | M195: 280.5 | N195: 285.13 | O195: 910700
A196: 181 | B196: 2011-04-14 | C196: 280.11 | D196: 285.97 | E196: 278.55 | F196: 282.91 | G196: 935800 | H196: 282.91 | I196: 1 | J196: 1 | K196: 280.11 | L196: 285.97 | M196: 278.55 | N196: 282.91 | O196: 935800
A197: 182 | B197: 2011-04-13 | C197: 277.72 | D197: 282.76 | E197: 275.12 | F197: 281.31 | G197: 1113400 | H197: 281.31 | I197: 1 | J197: 1 | K197: 277.72 | L197: 282.76 | M197: 275.12 | N197: 281.31 | O197: 1113400
A198: 183 | B198: 2011-04-12 | C198: 265.88 | D198: 277.15 | E198: 265.07 | F198: 274.3 | G198: 1151200 | H198: 274.3 | I198: 1 | J198: 1 | K198: 265.88 | L198: 277.15 | M198: 265.07 | N198: 274.3 | O198: 1151200
A199: 184 | B199: 2011-04-11 | C199: 268.6 | D199: 271.59 | E199: 265 | F199: 268.41 | G199: 475000 | H199: 268.41 | I199: 1 | J199: 1 | K199: 268.6 | L199: 271.59 | M199: 265 | N199: 268.41 | O199: 475000
A200: 185 | B200: 2011-04-08 | C200: 275.97 | D200: 277.18 | E200: 267.31 | F200: 269.24 | G200: 880100 | H200: 269.24 | I200: 1 | J200: 1 | K200: 275.97 | L200: 277.18 | M200: 267.31 | N200: 269.24 | O200: 880100
... 154 more rows

Sheet CorrelationCandidates
A1: Stocks and Indexes for which I want pair-wise correlation values | E1: Correlation Period rough in: | F1: 2011-01-01 | G1: to | H1: 2012-01-01 | I1: <= hard end date | L1: Symbol Retrieval Stats
A2: Only need list of valid symbols in column A starting in row 10. | F2: 250 | G2: Number of bars I want to use as the correlation window. | L2: =COUNTA(OFFSET($A$9,1,0,40000,1)) -> 502 | M2: Candidate Symbols
A3: All of the other fields will be filled in as the data for each symbol is retrieved. | F3: =WORKDAY(H1,-(250+100)) -> 2010-08-30 | G3: Earliest date to retrieve (with 100 days of padding). | K3: =L3/L2 -> 0.1972111554 | L3: 99 | M3: Completed | N3: =IFERROR(J5/L3,0) -> 00:00:04.778 | O3: Average Elapsed / symbol
H4: Data Retrieval Start: | I4: 2015-02-11T14:50:32 | J4: Elapsed | L4: =L2-L3 -> 403 | M4: Remaining | N4: =N3*L4 -> 00:32:05.444 | O4: Est. Time Remaining
A5: =COUNTIF(OFFSET(K9,1,0,L2,1),">="&F2) -> 0 | B5: ="Symbols with at least the required " & F2 & " bars." -> Symbols with at least the required 250 bars. | H5: Data Retrieval End: | I5: 2015-02-11T14:58:25 | J5: =I5-I4 -> 00:07:53 | L5: Correlation Stats | N5: 2015-02-11T15:30:30 | O5: ETA
H6: Correlation End: | I6: 2015-02-11T14:58:25 | J6: =I6-I5 -> 00:00:00 | L6: =A5*(A5-1)/2 -> 0 | M6: =" Possible pairings when using " & A5 & " symbols." -> Possible pairings when using 0 symbols.
A7: Symbol | H7: Total Elapsed: | I7: =J5+J6 -> 00:07:53 | K7: =L7/L6 ->  | L7: =RawCorrelations!A4 -> 0 | M7: Completed | N7: =IFERROR(J6/L7,0) -> 00:00:00 | O7: Average Elapsed per Pairing
A8: To | B8: Description | C8: Last Trade as of most recent check | K8: Bars Available | L8: =L6-L7 -> 0 | M8: Remaining | N8: =N7*L8 -> 00:00:00 | O8: Est time remaining
A9: Correlate | C9: Date | D9: Time | E9: Open | F9: High | G9: Low | H9: Close | I9: Volume | J9: Change | N9: 2015-02-11T14:56:36 | O9: ETA
A10: MMM
A11: ABT
A12: ABBV
A13: ACE
A14: ACN
A15: ACT
A16: ADBE
A17: ADT
A18: AES
A19: AET
A20: AFL
A21: AMG
A22: A
A23: GAS
A24: APD
A25: ARG
A26: AKAM
A27: AA
A28: ALXN
A29: ATI
A30: ALLE
A31: AGN
A32: ADS
A33: ALL
A34: ALTR
A35: MO
A36: AMZN
A37: AEE
A38: AEP
A39: AXP
A40: AIG
A41: AMT
A42: AMP
A43: ABC
A44: AME
A45: AMGN
A46: APH
A47: APC
A48: ADI
A49: AON
A50: APA
A51: AIV
A52: AAPL
A53: AMAT
A54: ADM
A55: AIZ
A56: T
A57: ADSK
A58: ADP
A59: AN
A60: AZO
A61: AVGO
A62: AVB
A63: AVY
A64: AVP
A65: BHI
A66: BLL
A67: BAC
A68: BK
A69: BCR
A70: BAX
A71: BBT
A72: BDX
A73: BBBY
A74: BRK-B
A75: BBY
A76: BIIB
A77: BLK
A78: HRB
A79: BA
A80: BWA
A81: BXP
A82: BSX
A83: BMY
A84: BRCM
A85: BF-B
A86: CHRW
A87: CA
A88: CVC
A89: COG
A90: CAM
A91: CPB
A92: COF
A93: CAH
A94: CFN
A95: KMX
A96: CCL
A97: CAT
A98: CBG
A99: CBS
A100: CELG
A101: CNP
A102: CTL
A103: CERN
A104: CF
A105: SCHW
A106: CHK
A107: CVX
A108: CMG
A109: CB
A110: CI
A111: XEC
A112: CINF
A113: CTAS
A114: CSCO
A115: C
A116: CTXS
A117: CLX
A118: CME
A119: CMS
A120: COH
A121: KO
A122: CCE
A123: CTSH
A124: CL
A125: CMCSA
A126: CMA
A127: CSC
A128: CAG
A129: COP
A130: CNX
A131: ED
A132: STZ
A133: GLW
A134: COST
A135: CCI
A136: CSX
A137: CMI
A138: CVS
A139: DHI
A140: DHR
A141: DRI
A142: DVA
A143: DE
A144: DLPH
A145: DAL
A146: DNR
A147: XRAY
A148: DVN
A149: DO
A150: DTV
A151: DFS
A152: DISCA
A153: DISCK
A154: DG
A155: DLTR
A156: D
A157: DOV
A158: DOW
A159: DPS
A160: DTE
A161: DD
A162: DUK
A163: DNB
A164: ETFC
A165: EMN
A166: ETN
A167: EBAY
A168: ECL
A169: EIX
A170: EW
A171: EA
A172: EMC
A173: EMR
A174: ENDP
A175: ESV
A176: ETR
A177: EOG
A178: EQT
A179: EFX
A180: EQR
A181: ESS
A182: EL
A183: EXC
A184: EXPE
A185: EXPD
A186: ESRX
A187: XOM
A188: FFIV
A189: FB
A190: FDO
A191: FAST
A192: FDX
A193: FIS
A194: FITB
A195: FSLR
A196: FE
A197: FISV
A198: FLIR
A199: FLS
A200: FLR
... 311 more rows

Sheet RawCorrelations
A1: Raw Symbol Correlation Pairs | J1: Outer Skips | K1: 1
A2: =COUNTA(OFFSET(CorrelationCandidates!A9,0,0,40000,1)) -1 -> 502 | B2: Symbols in Candidate pool | E2: =A2*(A2-1)/2 -> 125751 | F2: Potential unique pairings | J2: Inner Skips | K2: 71
A3: =CorrelationCandidates!A5 -> 0 | B3: =CorrelationCandidates!B5 -> Symbols with at least the required 250 bars. | E3: =A3*(A3-1)/2 -> 0 | F3: Pairings can be generated with current data
A4: 0 | B4: Symbol Pair Combinations Correlated on this page
A5: =A4/E3 ->  | B5: Complete | E5: =E2-E3 -> 125751 | F5: Potential pairings will not be generated due to insufficient bars for some symbols
A6: Pairs Correlation Log
A7: First Symbol | B7: Second Symbol | C7: Pair Correlation Value

Sheet SortedFilteredCorrelations
A1: Sort and Filter by Threshold and Max Entries
C2: 0.72 | D2: Absolute Correlation Threshold. Can specify out to 15 digits if you so choose
C3: 500 | D3: Max entries. A non-zero value is an absolute cut off for the number of result entries
D4: 27131 | E4: Raw Entries Satisfied the Correlation Threshold
B5: =TEXT(COUNTA(A:A)-COUNTA(A1:A7),"#,##0")&" Pairs in this" -> 0 Pairs in this
B6: Filtered Correlation List
A7: First Symbol | B7: Second Symbol | C7: Pair Correlation Value

Sheet S&P 500 Constituent Symbols
A1: MMM
A2: ABT
A3: ABBV | C3: Notes for this tab:
A4: ACE | D4: This S&P 500 constituents list was manually downloaded from a web resource.
A5: ACN | D5: I manually cleaned it up by deleting extraneous stuff including hyperlinks that came along for the ride.
A6: ACT | D6: It may not be completely up to date, but should be good enough for demonstration purposes.
A7: ADBE
A8: ADT
A9: AES | D9: =COUNTA(A1:A3000) -> 502 | E9: Total symbols. Thought that this was supposed to be just 500 long. Oh well, go with it.
A10: AET | D10: =D9*(D9-1)/2 -> 125751 | E10: Potential unique pairings (combinations taken 2 at a time with no duplicates)
A11: AFL
A12: AMG | D12: Several symbols in this list contain period (.) separators.
A13: A | D13: When used with the Yahoo Finance price history downloading mechanism employed by this spreadsheet,
A14: GAS | D14: the period (.) must be replaced with a hyphen (-) or the symbol will not be found on the Yahoo server.
A15: APD
A16: ARG | D16: This symbol list was copied to the CorrelationCandidates tab for price history retrieval and subsequent correlation processing.
A17: AKAM | D17: The period to hyphen substitution was manually performed as necessary on that tab.
A18: AA
A19: ALXN
A20: ATI
A21: ALLE
A22: AGN
A23: ADS
A24: ALL
A25: ALTR
A26: MO
A27: AMZN
A28: AEE
A29: AEP
A30: AXP
A31: AIG
A32: AMT
A33: AMP
A34: ABC
A35: AME
A36: AMGN
A37: APH
A38: APC
A39: ADI
A40: AON
A41: APA
A42: AIV
A43: AAPL
A44: AMAT
A45: ADM
A46: AIZ
A47: T
A48: ADSK
A49: ADP
A50: AN
A51: AZO
A52: AVGO
A53: AVB
A54: AVY
A55: AVP
A56: BHI
A57: BLL
A58: BAC
A59: BK
A60: BCR
A61: BAX
A62: BBT
A63: BDX
A64: BBBY
A65: BRK.B
A66: BBY
A67: BIIB
A68: BLK
A69: HRB
A70: BA
A71: BWA
A72: BXP
A73: BSX
A74: BMY
A75: BRCM
A76: BF.B
A77: CHRW
A78: CA
A79: CVC
A80: COG
A81: CAM
A82: CPB
A83: COF
A84: CAH
A85: CFN
A86: KMX
A87: CCL
A88: CAT
A89: CBG
A90: CBS
A91: CELG
A92: CNP
A93: CTL
A94: CERN
A95: CF
A96: SCHW
A97: CHK
A98: CVX
A99: CMG
A100: CB
A101: CI
A102: XEC
A103: CINF
A104: CTAS
A105: CSCO
A106: C
A107: CTXS
A108: CLX
A109: CME
A110: CMS
A111: COH
A112: KO
A113: CCE
A114: CTSH
A115: CL
A116: CMCSA
A117: CMA
A118: CSC
A119: CAG
A120: COP
A121: CNX
A122: ED
A123: STZ
A124: GLW
A125: COST
A126: CCI
A127: CSX
A128: CMI
A129: CVS
A130: DHI
A131: DHR
A132: DRI
A133: DVA
A134: DE
A135: DLPH
A136: DAL
A137: DNR
A138: XRAY
A139: DVN
A140: DO
A141: DTV
A142: DFS
A143: DISCA
A144: DISCK
A145: DG
A146: DLTR
A147: D
A148: DOV
A149: DOW
A150: DPS
A151: DTE
A152: DD
A153: DUK
A154: DNB
A155: ETFC
A156: EMN
A157: ETN
A158: EBAY
A159: ECL
A160: EIX
A161: EW
A162: EA
A163: EMC
A164: EMR
A165: ENDP
A166: ESV
A167: ETR
A168: EOG
A169: EQT
A170: EFX
A171: EQR
A172: ESS
A173: EL
A174: EXC
A175: EXPE
A176: EXPD
A177: ESRX
A178: XOM
A179: FFIV
A180: FB
A181: FDO
A182: FAST
A183: FDX
A184: FIS
A185: FITB
A186: FSLR
A187: FE
A188: FISV
A189: FLIR
A190: FLS
A191: FLR
A192: FMC
A193: FTI
A194: F
A195: FOSL
A196: BEN
A197: FCX
A198: FTR
A199: GME
A200: GCI
... 302 more rows
